fUST/lending_fUST_20240904
["ID","MTS","AMOUNT","RATE_DAILY","PERIOD"]
[337158122,1725459038091,-729.24235646,0.00024656,2]
[337158123,1725459038101,-1000.0,0.00024657,2]
[337158124,1725459038111,-526.581356,0.00024658,2]
[337158125,1725459038121,-300.0,0.0002468,2]
[337158126,1725459038133,-300.0,0.0002468,2]
[337158127,1725459038143,-3436.73278314,0.00024681,15]
[337158128,1725459038152,-23870.05660363,0.00024681,2]
[337158129,1725459038167,-1029.94339637,0.00024681,2]
[337158130,1725459038176,-166.666666,0.00024691,2]
[337158131,1725459038186,-166.666666,0.00024781,2]
[337158132,1725459038195,-166.666666,0.0002487,2]
[337158133,1725459038204,-166.666666,0.0002496,2]
[337158134,1725459038214,-166.666666,0.00025049,2]
[337158135,1725459038223,-166.666666,0.00025139,2]
[337158136,1725459038232,-1000.0,0.00025203,2]
[337158137,1725459038242,-1500.0,0.00025204,2]
[337158138,1725459038251,-166.666666,0.00025228,2]
[337158139,1725459038260,-166.666666,0.00025318,2]
[337158140,1725459038270,-1832.24443583,0.00025887,2]
[337158141,1725459038279,-1048.03036105,0.00026035,2]
[337158142,1725459038288,-300.0,0.00026746,2]
[337158144,1725459038298,-1000.0,0.00027,27]
[337158146,1725459038307,-5100.08196667,0.00027001,4]
[337158147,1725459038317,-420.0,0.00027149,2]
[337158148,1725459038326,-492.59814126,0.00027177,2]
[337158149,1725459038342,-11813.33,0.00027255,3]
[337158150,1725459038353,-14175.99,0.00027256,3]
[337158151,1725459038363,-1000.0,0.00027264,2]
[337158152,1725459038375,-360.40387943,0.00027265,2]
[337158153,1725459038389,-500.0,0.00027265,2]
[337158154,1725459038401,-500.0,0.00027265,2]
[337158155,1725459038416,-515.60156714,0.00027265,2]
[337158156,1725459038426,-500.0,0.00027265,2]
[337158157,1725459038437,-500.0,0.00027265,2]
[337158158,1725459038448,-500.0,0.00027265,2]
[337158159,1725459038459,-515.60156714,0.00027265,2]
[337158160,1725459038470,-500.0,0.00027265,2]
[337158161,1725459038482,-500.0,0.00027265,2]
[337158162,1725459038494,-251.16560541,0.00027265,2]
[337158163,1725459038504,-515.60156714,0.00027265,2]
[337158164,1725459038516,-500.0,0.00027265,2]
[337158165,1725459038526,-515.60156714,0.00027265,2]
[337158166,1725459038536,-500.0,0.00027265,2]
[337158167,1725459038546,-500.0,0.00027265,2]
[337158168,1725459038556,-515.60156714,0.00027265,2]
[337158169,1725459038566,-500.0,0.00027265,2]
[337158170,1725459038577,-527.0,0.00027265,2]
[337158171,1725459038587,-515.60156714,0.00027265,2]
[337158172,1725459038598,-500.0,0.00027265,2]
[337158173,1725459038608,-515.60156714,0.00027265,2]
[337158174,1725459038619,-500.0,0.00027265,2]
[337158175,1725459038629,-500.0,0.00027265,2]
[337158176,1725459038646,-515.60156714,0.00027265,2]
[337158177,1725459038657,-500.0,0.00027265,2]
[337158178,1725459038668,-515.60156714,0.00027265,2]
[337158179,1725459038679,-500.0,0.00027265,2]
[337158180,1725459038690,-500.0,0.00027265,2]
[337158181,1725459038700,-515.60156714,0.00027265,2]
[337158182,1725459038711,-500.0,0.00027265,2]
[337158183,1725459038721,-500.0,0.00027265,2]
[337158184,1725459038732,-515.60156714,0.00027265,2]
[337158185,1725459038743,-500.0,0.00027265,2]
[337158186,1725459038754,-515.60156714,0.00027265,2]
[337158187,1725459038765,-459.32416188,0.00027265,2]
[337158188,1725459038779,-40.67583812,0.00027265,2]
[337158189,1725459038790,-375.50212788,0.00027265,2]
[337158199,1725459040170,-140.09943926,0.00027265,2]
[337158200,1725459040181,-500.0,0.00027265,2]
[337158201,1725459040192,-515.60156714,0.00027265,2]
[337158202,1725459040202,-500.0,0.00027265,2]
[337158203,1725459040214,-515.60156714,0.00027265,2]
[337158204,1725459040225,-515.60156714,0.00027265,2]
[337158205,1725459040237,-500.0,0.00027265,2]
[337158206,1725459040248,-515.60156714,0.00027265,2]
[337158207,1725459040259,-500.0,0.00027265,2]
[337158208,1725459040270,-500.0,0.00027265,2]
[337158209,1725459040282,-515.60156714,0.00027265,2]
[337158210,1725459040292,-515.60156714,0.00027265,2]
[337158211,1725459040303,-515.60156714,0.00027265,2]
[337158212,1725459040314,-515.60156714,0.00027265,2]
[337158213,1725459040324,-515.60156714,0.00027265,2]
[337158214,1725459040335,-515.60156714,0.00027265,2]
[337158215,1725459040346,-515.60156714,0.00027265,2]
[337158216,1725459040356,-515.60156714,0.00027265,2]
[337158217,1725459040367,-515.60156714,0.00027265,2]
[337158218,1725459040378,-515.60156714,0.00027265,2]
[337158219,1725459040393,-515.60156714,0.00027265,2]
[337158220,1725459040403,-515.60156714,0.00027265,2]
[337158221,1725459040418,-515.60156714,0.00027265,2]
[337158222,1725459040428,-515.60156714,0.00027265,2]
[337158223,1725459040439,-515.60156714,0.00027265,2]
[337158224,1725459040449,-515.60156714,0.00027265,2]
[337158225,1725459040461,-515.60156714,0.00027265,2]
[337158226,1725459040472,-515.60156714,0.00027265,2]
[337158227,1725459040483,-515.60156714,0.00027265,2]
[337158228,1725459040495,-515.60156714,0.00027265,2]
[337158229,1725459040506,-515.60156714,0.00027265,2]
[337158230,1725459040517,-515.60156714,0.00027265,2]
[337158231,1725459040528,-515.60156714,0.00027265,2]
[337158232,1725459040539,-515.60156714,0.00027265,2]
[337158233,1725459040550,-515.60156714,0.00027265,2]
[337158234,1725459040561,-515.60156714,0.00027265,2]
[337158235,1725459040571,-515.60156714,0.00027265,2]
[337158236,1725459040583,-515.60156714,0.00027265,2]
[337158237,1725459040592,-515.60156714,0.00027265,2]
[337158238,1725459040603,-515.60156714,0.00027265,2]
[337158239,1725459040614,-515.60156714,0.00027265,2]
[337158240,1725459040623,-515.60156714,0.00027265,2]
[337158241,1725459040636,-515.60156714,0.00027265,2]
[337158242,1725459040647,-515.60156714,0.00027265,2]
[337158243,1725459040657,-515.60156714,0.00027265,2]
[337158244,1725459040667,-515.60156714,0.00027265,2]
[337158245,1725459040677,-515.60156714,0.00027265,2]
[337158246,1725459040687,-6262.91809276,0.00027266,15]
[337158255,1725459043143,-12361.42608346,0.00027266,15]
[337158256,1725459043161,-21355.39766534,0.00027267,3]
[337158330,1725459948079,-2385.61152501,0.00027233,15]
[337158331,1725459948126,-21176.85213101,0.00027236,15]
[337158332,1725459948169,-1300.0,0.0002725,120]
[337158333,1725459948229,-500.0,0.00028,120]
[337158334,1725459948273,-928.86,0.000285,14]
[337158335,1725459948317,-1000.0,0.00029,29]
[337158336,1725459948361,-20274.83,0.000291,14]
[337158337,1725459948405,-42198.31,0.000294,14]
[337158338,1725459948452,-308.47,0.000299,14]
[337158339,1725459948793,-500.0,0.0003,120]
[337158340,1725459948836,-15000.0,0.0003,10]
[337158341,1725459948889,-1000.0,0.00031,31]
[337158342,1725459948936,-500.0,0.00032,120]
[337158343,1725459948979,-928.86,0.000327,14]
[337158344,1725459949019,-1000.0,0.00033,33]
[337158345,1725459949059,-151.0,0.00033424,14]
[337158346,1725459949100,-242.923948,0.00033698,14]
[337158347,1725459949149,-20274.83,0.000337,14]
[337158348,1725459949195,-283.12083178,0.00033918,30]
[337158349,1725459949238,-500.0,0.00034,120]
[337158350,1725459949282,-151.0,0.00034048,14]
[337158351,1725459949325,-283.12083178,0.00034055,30]
[337158352,1725459949370,-283.12083178,0.00034219,30]
[337158353,1725459949418,-500.0,0.00034262,31]
[337158354,1725459949458,-500.0,0.00034262,13]
[337158355,1725459949502,-283.12083178,0.00034356,30]
[337158356,1725459949545,-283.12083178,0.00034493,30]
[337158357,1725459949586,-193.02,0.000345,120]
[337158358,1725459949625,-193.02,0.000345,120]
[337158359,1725459949678,-193.02,0.000345,120]
[337158360,1725459949719,-322.96638111,0.00034521,120]
[337158361,1725459949759,-42198.31,0.000346,14]
[337158362,1725459949799,-283.12083178,0.0003463,30]
[337158363,1725459949837,-500.0,0.00034747,13]
[337158364,1725459949880,-151.0,0.00034767,120]
[337158365,1725459949920,-283.12083178,0.00034767,30]
[337158366,1725459949960,-151.0,0.00034794,14]
[337158367,1725459949997,-308.47,0.000349,14]
[337158368,1725459950033,-283.12083178,0.00034932,30]
[337158369,1725459950070,-1000.0,0.00035,35]
[337158370,1725459950105,-283.12083178,0.00035068,30]
[337158371,1725459950153,-283.12083178,0.00035205,30]
[337158372,1725459950190,-283.12083178,0.00035342,30]
[337158373,1725459950226,-151.0,0.00035479,120]
[337158374,1725459950264,-283.12083178,0.00035507,30]
[337158375,1725459950301,-200.0,0.00035596,120]
[337158376,1725459950338,-376.266847,0.00035616,120]
[337158377,1725459950375,-283.12083178,0.00035644,30]
[337158378,1725459950414,-928.86,0.000357,14]
[337158379,1725459950450,-850.77,0.000357,30]
[337158380,1725459950487,-283.12083178,0.00035781,30]
[337158381,1725459950524,-283.12083178,0.00035918,30]
[337158382,1725459950560,-40000.0,0.00036,14]
[337158383,1725459950597,-53000.0,0.00036,60]
[337158384,1725459950632,-500.0,0.00036,120]
[337158385,1725459950672,-151.0,0.00036356,120]
[337158386,1725459950707,-20274.83,0.000366,14]
[337158387,1725459950743,-42198.31,0.000371,14]
[337158388,1725459950786,-151.0,0.000371,14]
[337158389,1725459950824,-320.0,0.0003726,120]
[337158390,1725459950862,-320.0,0.0003726,120]
[337158391,1725459950899,-320.0,0.0003726,120]
[337158392,1725459950937,-320.0,0.0003726,120]
[337158393,1725459950978,-320.0,0.0003726,120]
[337158394,1725459951016,-320.0,0.0003726,120]
[337158395,1725459951052,-320.0,0.0003726,120]
[337158396,1725459951088,-320.0,0.0003726,120]
[337158397,1725459951126,-320.0,0.0003726,120]
[337158398,1725459951167,-320.0,0.0003726,120]
[337158399,1725459951203,-320.0,0.0003726,120]
[337158400,1725459951243,-320.0,0.0003726,120]
[337158401,1725459951280,-320.0,0.0003726,120]
[337158402,1725459951318,-650.0,0.0003726,120]
[337158403,1725459951359,-650.0,0.0003726,120]
[337158404,1725459951400,-650.0,0.0003726,120]
[337158405,1725459951446,-650.0,0.0003726,120]
[337158406,1725459951485,-650.0,0.0003726,120]
[337158407,1725459951524,-650.0,0.0003726,120]
[337158408,1725459951563,-650.0,0.0003726,120]
[337158409,1725459951600,-650.0,0.0003726,120]
[337158410,1725459951640,-650.0,0.0003726,120]
[337158411,1725459951678,-650.0,0.0003726,120]
[337158412,1725459951717,-650.0,0.0003726,120]
[337158413,1725459951761,-650.0,0.0003726,120]
[337158414,1725459951800,-650.0,0.0003726,120]
[337158415,1725459951838,-320.0,0.0003726,120]
[337158416,1725459951879,-320.0,0.0003726,120]
[337158417,1725459951918,-320.0,0.0003726,120]
[337158418,1725459951957,-320.0,0.0003726,120]
[337158419,1725459951995,-320.0,0.0003726,120]
[337158420,1725459952033,-320.0,0.0003726,120]
[337158421,1725459952070,-320.0,0.0003726,120]
[337158422,1725459952108,-320.0,0.0003726,120]
[337158423,1725459952146,-320.0,0.0003726,120]
[337158424,1725459952184,-320.0,0.0003726,120]
[337158425,1725459952223,-320.0,0.0003726,120]
[337158426,1725459952263,-320.0,0.0003726,120]
[337158427,1725459952301,-320.0,0.0003726,120]
[337158428,1725459952337,-320.0,0.0003726,120]
[337158429,1725459952373,-650.0,0.0003726,120]
[337158430,1725459952414,-650.0,0.0003726,120]
[337158431,1725459952450,-650.0,0.0003726,120]
[337158432,1725459952487,-650.0,0.0003726,120]
[337158433,1725459952525,-650.0,0.0003726,120]
[337158434,1725459952564,-650.0,0.0003726,120]
[337158435,1725459952604,-650.0,0.0003726,120]
[337158436,1725459952646,-650.0,0.0003726,120]
[337158437,1725459952683,-650.0,0.0003726,120]
[337158438,1725459952845,-650.0,0.0003726,120]
[337158439,1725459952888,-650.0,0.0003726,120]
[337158440,1725459952927,-650.0,0.0003726,120]
[337158441,1725459952966,-650.0,0.0003726,120]
[337158442,1725459953007,-650.0,0.0003726,120]
[337158443,1725459953048,-320.0,0.0003726,120]
[337158444,1725459953085,-320.0,0.0003726,120]
[337158445,1725459953123,-320.0,0.0003726,120]
[337158446,1725459953167,-320.0,0.0003726,120]
[337158447,1725459953207,-320.0,0.0003726,120]
[337158448,1725459953249,-320.0,0.0003726,120]
[337158449,1725459953290,-320.0,0.0003726,120]
[337158450,1725459953333,-320.0,0.0003726,120]
[337158451,1725459953375,-320.0,0.0003726,120]
[337158452,1725459953422,-320.0,0.0003726,120]
[337158453,1725459953464,-320.0,0.0003726,120]
[337158454,1725459953504,-320.0,0.0003726,120]
[337158455,1725459953542,-320.0,0.0003726,120]
[337158456,1725459953583,-320.0,0.0003726,120]
[337158457,1725459953619,-650.0,0.0003726,120]
[337158458,1725459953662,-650.0,0.0003726,120]
[337158459,1725459953700,-650.0,0.0003726,120]
[337158460,1725459953738,-650.0,0.0003726,120]
[337158461,1725459953781,-650.0,0.0003726,120]
[337158462,1725459953819,-650.0,0.0003726,120]
[337158463,1725459953857,-650.0,0.0003726,120]
[337158464,1725459953895,-650.0,0.0003726,120]
[337158465,1725459953932,-650.0,0.0003726,120]
[337158466,1725459953968,-650.0,0.0003726,120]
[337158467,1725459954006,-650.0,0.0003726,120]
[337158468,1725459954043,-650.0,0.0003726,120]
[337158469,1725459954080,-650.0,0.0003726,120]
[337158470,1725459954118,-650.0,0.0003726,120]
[337158471,1725459954158,-320.0,0.0003726,120]
[337158472,1725459954195,-320.0,0.0003726,120]
[337158473,1725459954235,-320.0,0.0003726,120]
[337158474,1725459954274,-320.0,0.0003726,120]
[337158475,1725459954310,-320.0,0.0003726,120]
[337158476,1725459954349,-320.0,0.0003726,120]
[337158477,1725459954390,-320.0,0.0003726,120]
[337158478,1725459954427,-320.0,0.0003726,120]
[337158479,1725459954467,-320.0,0.0003726,120]
[337158480,1725459954506,-320.0,0.0003726,120]
[337158481,1725459954544,-320.0,0.0003726,120]
[337158482,1725459954581,-320.0,0.0003726,120]
[337158483,1725459954617,-320.0,0.0003726,120]
[337158484,1725459954656,-320.0,0.0003726,120]
[337158485,1725459954692,-650.0,0.0003726,120]
[337158486,1725459954729,-650.0,0.0003726,120]
[337158487,1725459954768,-650.0,0.0003726,120]
[337158488,1725459954806,-650.0,0.0003726,120]
[337158489,1725459954847,-650.0,0.0003726,120]
[337158490,1725459954886,-650.0,0.0003726,120]
[337158491,1725459954926,-650.0,0.0003726,120]
[337158492,1725459954964,-650.0,0.0003726,120]
[337158493,1725459955004,-650.0,0.0003726,120]
[337158494,1725459955043,-650.0,0.0003726,120]
[337158495,1725459955084,-650.0,0.0003726,120]
[337158496,1725459955123,-650.0,0.0003726,120]
[337158497,1725459955165,-650.0,0.0003726,120]
[337158498,1725459955204,-650.0,0.0003726,120]
[337158499,1725459955244,-320.0,0.0003726,120]
[337158500,1725459955286,-320.0,0.0003726,120]
[337158501,1725459955326,-320.0,0.0003726,120]
[337158502,1725459955367,-320.0,0.0003726,120]
[337158503,1725459955409,-320.0,0.0003726,120]
[337158504,1725459955449,-320.0,0.0003726,120]
[337158505,1725459955487,-320.0,0.0003726,120]
[337158506,1725459955532,-320.0,0.0003726,120]
[337158507,1725459955571,-320.0,0.0003726,120]
[337158508,1725459955611,-320.0,0.0003726,120]
[337158509,1725459955649,-320.0,0.0003726,120]
[337158510,1725459955705,-320.0,0.0003726,120]
[337158511,1725459955743,-320.0,0.0003726,120]
[337158512,1725459955789,-320.0,0.0003726,120]
[337158513,1725459955826,-650.0,0.0003726,120]
[337158514,1725459955862,-650.0,0.0003726,120]
[337158515,1725459955897,-650.0,0.0003726,120]
[337158516,1725459955935,-650.0,0.0003726,120]
[337158517,1725459955974,-650.0,0.0003726,120]
[337158518,1725459956010,-650.0,0.0003726,120]
[337158519,1725459956046,-650.0,0.0003726,120]
[337158520,1725459956083,-650.0,0.0003726,120]
[337158521,1725459956119,-650.0,0.0003726,120]
[337158522,1725459956159,-650.0,0.0003726,120]
[337158523,1725459956197,-650.0,0.0003726,120]
[337158524,1725459956233,-650.0,0.0003726,120]
[337158525,1725459956271,-650.0,0.0003726,120]
[337158526,1725459956307,-650.0,0.0003726,120]
[337158527,1725459956347,-320.0,0.0003726,120]
[337158528,1725459956387,-320.0,0.0003726,120]
[337158530,1725459956425,-320.0,0.0003726,120]
[337158531,1725459956462,-320.0,0.0003726,120]
[337158532,1725459956499,-320.0,0.0003726,120]
[337158533,1725459956536,-320.0,0.0003726,120]
[337158534,1725459956573,-320.0,0.0003726,120]
[337158535,1725459956609,-320.0,0.0003726,120]
[337158536,1725459956645,-320.0,0.0003726,120]
[337158537,1725459956680,-320.0,0.0003726,120]
[337158538,1725459956715,-320.0,0.0003726,120]
[337158539,1725459956752,-320.0,0.0003726,120]
[337158540,1725459956791,-320.0,0.0003726,120]
[337158541,1725459956831,-320.0,0.0003726,120]
[337158542,1725459956870,-650.0,0.0003726,120]
[337158543,1725459956906,-650.0,0.0003726,120]
[337158544,1725459956942,-650.0,0.0003726,120]
[337158545,1725459956977,-650.0,0.0003726,120]
[337158546,1725459957013,-650.0,0.0003726,120]
[337158547,1725459957049,-650.0,0.0003726,120]
[337158548,1725459957085,-650.0,0.0003726,120]
[337158549,1725459957122,-650.0,0.0003726,120]
[337158550,1725459957159,-650.0,0.0003726,120]
[337158551,1725459957197,-650.0,0.0003726,120]
[337158552,1725459957234,-650.0,0.0003726,120]
[337158553,1725459957272,-650.0,0.0003726,120]
[337158554,1725459957309,-650.0,0.0003726,120]
[337158555,1725459957345,-650.0,0.0003726,120]
[337158556,1725459957386,-320.0,0.0003726,120]
[337158557,1725459957425,-320.0,0.0003726,120]
[337158558,1725459957462,-320.0,0.0003726,120]
[337158559,1725459957501,-320.0,0.0003726,120]
[337158560,1725459957539,-320.0,0.0003726,120]
[337158561,1725459957575,-320.0,0.0003726,120]
[337158562,1725459957610,-320.0,0.0003726,120]
[337158563,1725459957645,-320.0,0.0003726,120]
[337158564,1725459957682,-320.0,0.0003726,120]
[337158565,1725459957723,-320.0,0.0003726,120]
[337158566,1725459957765,-320.0,0.0003726,120]
[337158567,1725459957801,-320.0,0.0003726,120]
[337158568,1725459957837,-320.0,0.0003726,120]
[337158569,1725459957875,-320.0,0.0003726,120]
[337158570,1725459957913,-650.0,0.0003726,120]
[337158571,1725459957949,-650.0,0.0003726,120]
[337158572,1725459957986,-650.0,0.0003726,120]
[337158573,1725459958025,-650.0,0.0003726,120]
[337158574,1725459958063,-650.0,0.0003726,120]
[337158575,1725459958100,-650.0,0.0003726,120]
[337158576,1725459958137,-650.0,0.0003726,120]
[337158577,1725459958174,-650.0,0.0003726,120]
[337158578,1725459958209,-650.0,0.0003726,120]
[337158579,1725459958247,-650.0,0.0003726,120]
[337158580,1725459958284,-650.0,0.0003726,120]
[337158581,1725459958320,-650.0,0.0003726,120]
[337158582,1725459958356,-650.0,0.0003726,120]
[337158583,1725459958397,-650.0,0.0003726,120]
[337158584,1725459958434,-308.47,0.000374,14]
[337158585,1725459958471,-2844.20094729,0.0003786,120]
[337158586,1725459958509,-151.0,0.00037945,120]
[337158587,1725459958546,-500.0,0.00038,120]
[337158588,1725459958584,-928.86,0.000381,14]
[337158589,1725459958620,-850.77,0.000381,30]
[337158590,1725459958663,-151.0,0.00038219,120]
[337158591,1725459958702,-151.0,0.00039534,120]
[337158592,1725459958739,-20274.83,0.000397,14]
[337158593,1725459958779,-1014.15306556,0.0004,120]
[337158594,1725459958815,-500.0,0.0004,120]
[337158595,1725459958853,-1536.0,0.0004,120]
[337158596,1725459958904,-1000.0,0.00040111,30]
[337158597,1725459958941,-662.64019182,0.000402,120]
[337158598,1725459958978,-900.0,0.00040222,30]
[337158599,1725459959015,-1000.0,0.00040251,30]
[337158600,1725459959050,-700.0,0.00040648,30]
[337158601,1725459959087,-1700.0,0.0004072,30]
[337158602,1725459959124,-42198.31,0.000408,14]
[337158603,1725459959167,-700.0,0.00040952,30]
[337158604,1725459959203,-151.0,0.00040959,120]
[337158605,1725459959240,-1700.0,0.00041076,30]
[337158606,1725459959276,-151.0,0.00041123,120]
[337158607,1725459959313,-1613.0,0.00041129,30]
[337158608,1725459959353,-900.0,0.00041183,30]
[337158609,1725459959395,-200.0,0.00041318,120]
[337158610,1725459959433,-308.47,0.000414,14]
[337158611,1725459959472,-376.266847,0.00041553,120]
[337158612,1725459959514,-1000.0,0.00041847,30]
[337158613,1725459959552,-1000.0,0.00042024,30]
[337158614,1725459959590,-500.0,0.00042281,30]
[337158615,1725459959627,-198.22052376,0.0004236,120]
[337158616,1725459959662,-500.252288,0.00042394,120]
[337158617,1725459959799,-850.77,0.000424,30]
[337158618,1725459959839,-1762.185,0.000425,40]
[337158619,1725459959880,-1000.0,0.00042637,30]
[337158620,1725459959921,-151.0,0.00042712,120]
[337158621,1725459959960,-152.6375423,0.00042877,45]
[337158622,1725459959999,-1094.01210939,0.000429,30]
[337158623,1725459960037,-500.0,0.00042953,30]
[337158624,1725459960075,-250.7,0.00043,53]
[337158625,1725459960113,-250.699999,0.00043,53]
[337158626,1725459960152,-250.7,0.00043,53]
[337158627,1725459960191,-2538.33626557,0.00043,30]
[337158628,1725459960230,-700.0,0.00043109,30]
[337158629,1725459960273,-900.0,0.00043348,30]
[337158630,1725459960314,-1700.0,0.00043458,30]
[337158631,1725459960354,-500.0,0.00043514,30]
[337158632,1725459960394,-700.0,0.00043522,30]
[337158633,1725459960435,-1700.0,0.00043572,30]
[337158634,1725459960476,-1000.0,0.00043687,30]
[337158635,1725459960518,-151.0,0.00043699,120]
[337158636,1725459960556,-20274.83,0.000438,14]
[337158637,1725459960594,-1000.0,0.00043831,30]
[337158638,1725459960633,-3788.53,0.00043835,120]
[337158639,1725459960673,-3788.53,0.00043835,120]
[337158640,1725459960709,-3788.53,0.00043835,120]
[337158641,1725459960746,-3788.53,0.00043835,120]
[337158642,1725459960788,-3788.53,0.00043835,120]
[337158643,1725459960827,-3788.53,0.00043835,120]
[337158644,1725459960867,-3788.53,0.00043835,120]
[337158645,1725459960905,-3788.53,0.00043835,120]
[337158646,1725459960946,-3788.53,0.00043835,120]
[337158647,1725459960986,-3788.53,0.00043835,120]
[337158648,1725459961025,-3788.53,0.00043835,120]
[337158649,1725459961061,-3788.53,0.00043835,120]
[337158650,1725459961098,-3788.53,0.00043835,120]
[337158651,1725459961133,-3788.53,0.00043835,120]
[337158652,1725459961178,-3788.53,0.00043835,120]
[337158653,1725459961220,-3788.53,0.00043835,120]
[337158654,1725459961262,-3788.53,0.00043835,120]
[337158655,1725459961303,-3788.53,0.00043835,120]
[337158656,1725459961340,-3788.53,0.00043835,120]
[337158657,1725459961377,-3788.53,0.00043835,120]
[337158658,1725459961417,-3788.53,0.00043835,120]
[337158659,1725459961456,-3788.53,0.00043835,120]
[337158660,1725459961494,-3788.53,0.00043835,120]
[337158661,1725459961531,-3788.71162578,0.00043835,120]
[337158662,1725459961569,-600.0,0.00043835,120]
[337158663,1725459961608,-600.0,0.00043835,120]
[337158664,1725459961651,-600.0,0.00043835,120]
[337158665,1725459961690,-600.0,0.00043835,120]
[337158666,1725459961730,-599.61288314,0.00043835,120]
[337158667,1725459961771,-163.059237,0.00043835,120]
[337158668,1725459961810,-500.0,0.00043882,30]
[337158669,1725459961849,-200.0,0.00044,57]
[337158670,1725459961890,-200.0,0.00044,57]
[337158671,1725459961933,-200.0,0.00044,57]
[337158672,1725459961972,-500.0,0.00044,120]
[337158673,1725459962012,-1000.0,0.0004405,30]
[337158674,1725459962052,-151.0,0.00044301,120]
[337158675,1725459962092,-900.0,0.00044356,30]
[337158676,1725459962131,-500.0,0.00044507,30]
[337158677,1725459962171,-42198.31,0.000446,30]
[337158678,1725459962210,-900.0,0.00044785,30]
[337158679,1725459962249,-1000.0,0.00044823,30]
[337158680,1725459962288,-1700.0,0.00044868,30]
[337158681,1725459962327,-200.0,0.00045,61]
[337158682,1725459962366,-200.0,0.00045,61]
[337158683,1725459962403,-200.0,0.00045,61]
[337158684,1725459962441,-235.53873843,0.00045,120]
[337158685,1725459962479,-266.71159611,0.00045,30]
[337158686,1725459962516,-834.83924172,0.00045,20]
[337158687,1725459962554,-1000.0,0.00045,30]
[337158688,1725459962595,-1700.0,0.0004509,30]
[337158689,1725459962633,-900.0,0.00045094,30]
[337158690,1725459962675,-740.0,0.00045242,30]
[337158691,1725459962730,-1700.0,0.00045249,30]
[337158692,1725459962772,-500.0,0.0004525,30]
[337158693,1725459962815,-900.0,0.00045274,30]
[337158694,1725459962857,-1000.0,0.00045342,30]
[337158695,1725459962900,-151.0,0.0004589,120]
[337158696,1725459962939,-200.0,0.00046,65]
[337158697,1725459962980,-200.0,0.00046,65]
[337158698,1725459963020,-200.0,0.00046,65]
[337158699,1725459963060,-163.27777229,0.00046,120]
[337158700,1725459963099,-1700.0,0.00046168,30]
[337158701,1725459963142,-500.0,0.00046287,30]
[337158702,1725459963183,-1000.0,0.00046313,30]
[337158703,1725459963223,-151.0,0.00046438,120]
[337158704,1725459963267,-900.0,0.00046458,30]
[337158705,1725459963310,-54088.9490156,0.00046464,120]
[337158706,1725459963595,-2910.39403897,0.000468,120]
[337158707,1725459963636,-5072.85308425,0.000468,120]
[337158708,1725459963679,-895.30183769,0.000468,60]
[337158709,1725459963720,-500.0,0.00046849,30]
[337158710,1725459963766,-308.47,0.000469,30]
[337158711,1725459963809,-200.0,0.00047,69]
[337158712,1725459963853,-200.0,0.00047,69]
[337158713,1725459963895,-200.0,0.00047,69]
[337158714,1725459963936,-349.4,0.00047,69]